fUST/lending_fUST_20250927
["ID","MTS","AMOUNT","RATE_DAILY","PERIOD"]
[388005960,1758961839854,-500.0,0.00029473,5]
[388005961,1758961839863,-500.0,0.00029473,5]
[388005962,1758961839872,-157.91805218,0.00029473,5]
[388005963,1758961839881,-500.0,0.00029473,5]
[388005964,1758961839891,-500.92257167,0.00029473,5]
[388005965,1758961839900,-503.9769044,0.00029473,5]
[388005966,1758961839911,-501.1099315,0.00029473,5]
[388005967,1758961839921,-501.21504676,0.00029473,5]
[388005968,1758961839930,-150.40372041,0.000295,120]
[388005969,1758961839940,-160.0,0.00029509,2]
[388005970,1758961839950,-1000.0,0.00029521,5]
[388005971,1758961839959,-413.4969928,0.00029521,5]
[388005972,1758961839969,-1098.46902438,0.00029521,2]
[388005973,1758961839978,-504.18209025,0.00029521,5]
[388005974,1758961839988,-1000.0,0.00029521,5]
[388005975,1758961839997,-1000.0,0.00029521,5]
[388005976,1758961840007,-1000.0,0.00029521,5]
[388005977,1758961840017,-770.48989284,0.00029521,5]
[388005978,1758961840026,-1000.0,0.00029521,5]
[388005980,1758961840035,-1000.0,0.00029521,5]
[388005981,1758961840045,-1000.0,0.00029521,5]
[388005982,1758961840054,-1005.31747528,0.00029521,5]
[388005983,1758961840064,-1000.0,0.00029521,5]
[388005984,1758961840073,-593.68268123,0.00029535,2]
[388005985,1758961840082,-537.51058857,0.00029535,2]
[388005987,1758961840091,-967.51905943,0.00029535,2]
[388005988,1758961840100,-527.4819258,0.00029535,2]
[388005989,1758961840109,-949.46746644,0.00029535,2]
[388005990,1758961840120,-500.0,0.00029548,3]
[388005991,1758961840134,-804.6090716,0.00029626,30]
[388005992,1758961840143,-490.61,0.00029711,10]
[388005993,1758961840152,-416.0,0.00029714,2]
[388005994,1758961840162,-420.0,0.00029714,2]
[388005995,1758961840174,-1720.03388342,0.00029727,2]
[388005996,1758961840183,-1227.23234297,0.00029814,2]
[388005997,1758961840193,-1068.62882622,0.00029965,2]
[388005998,1758961840204,-150.97666581,0.00029973,5]
[388005999,1758961840213,-557.84070891,0.0003,5]
[388006000,1758961840223,-151.65377007,0.0003,14]
[388006002,1758961840232,-1038.49,0.0003,2]
[388006003,1758961840242,-1000.0,0.00030021,5]
[388006004,1758961840250,-1000.0,0.00030021,5]
[388006006,1758961840260,-505.00008393,0.00030021,5]
[388006008,1758961840270,-1000.0,0.00030021,5]
[388006009,1758961840279,-250.0,0.00030021,5]
[388006010,1758961840288,-1000.0,0.00030021,5]
[388006011,1758961840297,-1003.27584877,0.00030021,5]
[388006013,1758961840306,-1000.0,0.00030021,5]
[388006014,1758961840315,-1000.0,0.00030021,5]
[388006015,1758961840325,-1000.0,0.00030021,5]
[388006016,1758961840335,-670.15660424,0.00030021,5]
[388006017,1758961840344,-1000.0,0.00030021,5]
[388006018,1758961840354,-1000.0,0.00030021,5]
[388006020,1758961840363,-1004.22106152,0.00030021,5]
[388006021,1758961840372,-1002.63320567,0.00030021,5]
[388006022,1758961840381,-260.0,0.00030057,2]
[388006023,1758961840390,-500.0,0.00030068,5]
[388006024,1758961840400,-1500.0,0.00030068,5]
[388006025,1758961840410,-381.35442893,0.00030068,5]
[388006027,1758961840419,-505.89771885,0.00030068,5]
[388006028,1758961840428,-1500.0,0.00030068,5]
[388006032,1758961840613,-1500.0,0.00030068,5]
[388006033,1758961840623,-1500.0,0.00030068,5]
[388006034,1758961840632,-1038.49,0.0003014,2]
[388006036,1758961840642,-1687.94216255,0.00030151,2]
[388006037,1758961840651,-1038.49,0.0003028,2]
[388006038,1758961840660,-160.0,0.00030352,2]
[388006039,1758961840669,-151.0,0.000304,16]
[388006040,1758961840678,-666.0,0.00030408,2]
[388006041,1758961840687,-2687.55294285,0.00030515,2]
[388006042,1758961840696,-52258.605849,0.00030558,2]
[388006043,1758961840705,-4227.40909478,0.00030558,2]
[388006044,1758961840715,-1500.0,0.00030568,5]
[388006045,1758961840724,-1006.74121633,0.00030568,5]
[388006046,1758961840734,-350.0,0.00030568,5]
[388006047,1758961840743,-1007.38133592,0.00030568,5]
[388006048,1758961840752,-503.78618329,0.00030568,5]
[388006049,1758961840762,-1010.03878046,0.00030568,5]
[388006050,1758961840771,-1500.0,0.00030568,5]
[388006051,1758961840781,-1488.52245329,0.00030568,5]
[388006052,1758961840791,-1183.90719864,0.00030568,5]
[388006053,1758961840800,-151.0,0.000306,18]
[388006054,1758961840809,-360.0,0.00030605,2]
[388006055,1758961840818,-2000.0,0.00030616,5]
[388006056,1758961840828,-501.78444652,0.00030616,5]
[388006057,1758961840838,-1015.63327016,0.00030616,5]
[388006058,1758961840847,-1012.5861642,0.00030616,5]
[388006059,1758961840856,-11707.87073323,0.00030637,2]
[388006061,1758961840866,-4864.26,0.00030787,3]
[388006062,1758961840876,-151.0,0.000308,16]
[388006063,1758961840886,-491.30690151,0.00030831,3]
[388006064,1758961840896,-204.75774475,0.00030831,3]
[388006065,1758961840906,-1917.55053589,0.00030844,2]
[388006066,1758961840915,-1000.0,0.00030971,2]
[388006067,1758961840924,-1000.0,0.00030971,2]
[388006068,1758961840933,-1000.0,0.00030971,2]
[388006069,1758961840942,-1000.0,0.00030971,2]
[388006070,1758961840951,-1000.0,0.00030971,2]
[388006071,1758961840961,-1000.0,0.00030971,2]
[388006072,1758961840970,-151.0,0.00030971,2]
[388006073,1758961840979,-1000.0,0.00030971,2]
[388006074,1758961840988,-350.0,0.00030971,2]
[388006075,1758961840997,-1000.0,0.00030971,2]
[388006076,1758961841007,-165.86005632,0.00030971,2]
[388006077,1758961841016,-350.0,0.00030971,2]
[388006078,1758961841025,-1000.0,0.00030971,2]
[388006079,1758961841036,-350.0,0.00030971,2]
[388006080,1758961841046,-1000.0,0.00030971,2]
[388006081,1758961841057,-350.0,0.00030971,2]
[388006082,1758961841067,-1000.0,0.00030971,2]
[388006083,1758961841077,-350.0,0.00030971,2]
[388006084,1758961841087,-1000.0,0.00030971,2]
[388006085,1758961841096,-350.0,0.00030971,2]
[388006086,1758961841106,-151.0,0.00030971,2]
[388006087,1758961841116,-1000.0,0.00030971,2]
[388006088,1758961841131,-350.0,0.00030971,2]
[388006089,1758961841140,-1000.0,0.00030971,2]
[388006090,1758961841149,-151.0,0.00030971,2]
[388006091,1758961841159,-493.65648943,0.00030971,2]
[388006092,1758961841168,-1000.0,0.00030971,2]
[388006093,1758961841179,-151.0,0.00030971,2]
[388006094,1758961841188,-1000.0,0.00030971,2]
[388006095,1758961841197,-151.0,0.00030971,2]
[388006096,1758961841207,-1000.0,0.00030971,2]
[388006097,1758961841216,-151.0,0.00030971,2]
[388006098,1758961841225,-1000.0,0.00030971,2]
[388006099,1758961841235,-151.0,0.00030971,2]
[388006100,1758961841244,-1000.0,0.00030971,2]
[388006101,1758961841253,-151.0,0.00030971,2]
[388006102,1758961841263,-1000.0,0.00030971,2]
[388006103,1758961841272,-151.0,0.00030971,2]
[388006104,1758961841281,-1000.0,0.00030971,2]
[388006105,1758961841291,-151.0,0.00030971,2]
[388006106,1758961841300,-1000.0,0.00030971,2]
[388006107,1758961841309,-298.26373367,0.00030971,2]
[388006108,1758961841319,-1000.0,0.00030971,2]
[388006109,1758961841328,-1000.0,0.00030971,2]
[388006110,1758961841338,-1000.0,0.00030971,2]
[388006111,1758961841348,-500.0,0.00030971,2]
[388006112,1758961841357,-1000.0,0.00030971,2]
[388006113,1758961841367,-500.0,0.00030971,2]
[388006114,1758961841376,-1000.0,0.00030971,2]
[388006115,1758961841386,-500.0,0.00030971,2]
[388006116,1758961841395,-1000.0,0.00030971,2]
[388006117,1758961841404,-500.0,0.00030971,2]
[388006118,1758961841412,-1000.0,0.00030971,2]
[388006119,1758961841422,-500.0,0.00030971,2]
[388006120,1758961841431,-1000.0,0.00030971,2]
[388006121,1758961841441,-500.0,0.00030971,2]
[388006122,1758961841451,-1000.0,0.00030971,2]
[388006123,1758961841461,-500.0,0.00030971,2]
[388006124,1758961841471,-1000.0,0.00030971,2]
[388006125,1758961841480,-500.0,0.00030971,2]
[388006126,1758961841490,-1000.0,0.00030971,2]
[388006127,1758961841499,-500.0,0.00030971,2]
[388006128,1758961841508,-500.0,0.00030971,2]
[388006129,1758961841518,-1000.0,0.00030971,2]
[388006130,1758961841528,-500.0,0.00030971,2]
[388006131,1758961841538,-1000.0,0.00030971,2]
[388006132,1758961841547,-500.0,0.00030971,2]
[388006133,1758961841556,-1000.0,0.00030971,2]
[388006134,1758961841566,-1000.0,0.00030971,2]
[388006135,1758961841575,-1000.0,0.00030971,2]
[388006136,1758961841585,-1000.0,0.00030971,2]
[388006137,1758961841595,-1000.0,0.00030971,2]
[388006138,1758961841604,-500.0,0.00030973,5]
[388006139,1758961841614,-1000.0,0.00031,2]
[388006140,1758961841623,-151.0,0.00031,13]
[388006141,1758961841633,-855.81146786,0.00031048,3]
[388006142,1758961841642,-2637.40962899,0.00031071,2]
[388006143,1758961841651,-250.0,0.00031071,2]
[388006144,1758961841661,-500.0,0.00031116,5]
[388006145,1758961841671,-450.0,0.00031116,5]
[388006146,1758961841681,-2000.0,0.00031116,5]
[388006147,1758961841691,-460.0,0.00031153,2]
[388006148,1758961841699,-2500.0,0.00031164,5]
[388006149,1758961841709,-151.0,0.000312,15]
[388006150,1758961841719,-695.03479898,0.00031202,3]
[388006151,1758961841729,-52258.605849,0.00031234,2]
[388006152,1758961841738,-4227.40909478,0.00031234,2]
[388006153,1758961841747,-162.814,0.00031241,28]
[388006154,1758961841757,-180.74,0.00031241,28]
[388006155,1758961841767,-199.0,0.00031243,14]
[388006156,1758961841776,-879.391134,0.00031244,2]
[388006157,1758961841787,-18171.1809563,0.00031244,2]
[388006158,1758961841796,-248.3990749,0.00031247,2]
[388006159,1758961841806,-7974.4329132,0.00031247,2]
[388006160,1758961841815,-500.0,0.00031273,5]
[388006161,1758961841825,-3870.0762377,0.00031303,2]
[388006162,1758961841835,-150.69317106,0.0003134,2]
[388006163,1758961841844,-176.73301863,0.0003134,2]
[388006164,1758961841854,-607.91732435,0.00031347,2]
[388006165,1758961841863,-8785.93481221,0.00031373,2]
[388006166,1758961841872,-52258.605849,0.00031401,2]
[388006167,1758961841882,-4227.40909478,0.00031401,2]
[388006168,1758961841892,-52258.605849,0.00031411,2]
[388006169,1758961841902,-4227.40909478,0.00031411,2]
[388006170,1758961841911,-744.36,0.0003142,3]
[388006171,1758961841920,-4227.40909478,0.0003142,2]
[388006172,1758961841930,-54956.3182321,0.0003143,2]
[388006173,1758961841941,-911819.11020556,0.0003144,2]
[388006174,1758961841953,-151.0,0.0003144,2]
[388006175,1758961841964,-151.0,0.0003144,2]
[388006176,1758961841974,-500.0,0.0003144,2]
[388006177,1758961841984,-158.47727332,0.0003144,2]
[388006178,1758961841994,-151.0,0.0003144,2]
[388006179,1758961842003,-500.0,0.0003144,2]
[388006180,1758961842012,-500.0,0.0003144,2]
[388006181,1758961842022,-258.12653421,0.00031473,5]
[388006182,1758961842032,-336.14506797,0.00031473,5]
[388006183,1758961842042,-500.0,0.00031473,5]
[388006184,1758961842051,-500.0,0.00031473,5]
[388006185,1758961842060,-502.74973854,0.00031473,5]
[388006186,1758961842071,-500.0,0.00031473,5]
[388006187,1758961842081,-500.0,0.00031473,5]
[388006188,1758961842091,-502.11624073,0.00031473,5]
[388006189,1758961842100,-500.19968035,0.00031473,5]
[388006190,1758961842109,-503.64706126,0.00031473,5]
[388006191,1758961842121,-501.2193652,0.00031473,5]
[388006192,1758961842132,-500.0,0.00031473,5]
[388006193,1758961842141,-250.0,0.00031473,5]
[388006194,1758961842150,-194.55111232,0.00031473,5]
[388006195,1758961842159,-151.0,0.00031473,5]
[388006196,1758961842170,-163.57162205,0.00031473,5]
[388006197,1758961842179,-151.0,0.00031473,5]
[388006198,1758961842188,-151.97795125,0.00031473,5]
[388006199,1758961842198,-500.0,0.00031473,5]
[388006200,1758961842208,-151.43139138,0.00031473,5]
[388006201,1758961842217,-151.0,0.00031473,5]
[388006202,1758961842227,-247.04362986,0.00031473,5]
[388006203,1758961842236,-151.0,0.00031473,5]
[388006204,1758961842245,-151.0,0.00031473,5]
[388006205,1758961842254,-500.0,0.00031473,5]
[388006206,1758961842264,-151.44785783,0.00031473,5]
[388006207,1758961842273,-500.0,0.00031473,5]
[388006208,1758961842282,-151.0,0.00031473,5]
[388006209,1758961842291,-151.0,0.00031473,5]
[388006210,1758961842301,-151.59310519,0.00031473,5]
[388006211,1758961842311,-151.93961096,0.00031473,5]
[388006212,1758961842320,-500.0,0.00031473,5]
[388006213,1758961842329,-762.0,0.00031473,5]
[388006214,1758961842339,-151.0,0.00031473,5]
[388006215,1758961842348,-151.0,0.00031473,5]
[388006216,1758961842358,-151.0,0.00031473,5]
[388006217,1758961842367,-3934.01,0.000315,2]
[388006218,1758961842376,-156.8,0.000315,30]
[388006219,1758961842385,-500.0,0.00031506,15]
[388006220,1758961842394,-151.0,0.00031519,2]
[388006221,1758961842403,-1000.0,0.00031521,5]
[388006222,1758961842412,-1680.0,0.00031528,3]
[388006223,1758961842422,-550.0,0.00031664,5]
[388006224,1758961842431,-2511.72769702,0.00031664,5]
[388006225,1758961842441,-560.0,0.000317,2]
[388006226,1758961842450,-3000.0,0.00031712,5]
[388006227,1758961842460,-151.0,0.00031714,2]
[388006228,1758961842470,-500.0,0.00031714,2]
[388006229,1758961842480,-151.0,0.00031714,2]
[388006230,1758961842490,-500.0,0.00031714,2]
[388006231,1758961842500,-500.0,0.00031714,2]
[388006232,1758961842512,-168.0,0.00031725,2]
[388006233,1758961842522,-8785.93481219,0.00031737,2]
[388006234,1758961842531,-153.65506528,0.00031747,5]
[388006235,1758961842540,-152.41683478,0.00031747,5]
[388006236,1758961842549,-500.0,0.00031747,5]
[388006237,1758961842558,-151.0,0.00031747,5]
[388006238,1758961842568,-151.0,0.00031747,5]
[388006239,1758961842577,-151.0,0.00031747,5]
[388006240,1758961842587,-606.37485388,0.00031747,5]
[388006241,1758961842596,-500.0,0.00031747,5]
[388006242,1758961842606,-151.0,0.00031747,5]
[388006243,1758961842615,-199.96490751,0.00031747,5]
[388006244,1758961842624,-544.12661906,0.00031747,5]
[388006245,1758961842633,-762.0,0.00031747,5]
[388006246,1758961842643,-151.0,0.00031747,5]
[388006247,1758961842652,-154.66728356,0.00031747,5]
[388006248,1758961842662,-151.0,0.00031747,5]
[388006249,1758961842672,-1000.0,0.0003178,7]
[388006250,1758961842681,-1000.0,0.00031821,5]
[388006251,1758961842690,-1897.88479536,0.00031862,2]
[388006252,1758961842700,-283.37361919,0.00031862,2]
[388006253,1758961842710,-11707.87073323,0.000319,2]
[388006254,1758961842719,-1003.88652113,0.0003193,5]
[388006255,1758961842728,-426.66391159,0.00031934,2]
[388006256,1758961842738,-154.50229709,0.00031988,2]
[388006257,1758961842747,-500.0,0.00031988,2]
[388006258,1758961842757,-500.0,0.00031988,2]
[388006259,1758961842767,-177.76868502,0.00031988,2]
[388006260,1758961842776,-3797.86986574,0.00031991,2]
[388006261,1758961842786,-211120.17130202,0.00031998,2]
[388006262,1758961842795,-124.89657575,0.00032,120]
[388006263,1758961842805,-217.99592756,0.00032,120]
[388006264,1758961842814,-520.3026214,0.00032,120]
[388006265,1758961842824,-183.28330123,0.00032,120]
[388006266,1758961842835,-214.60596597,0.00032,120]
[388006267,1758961842846,-160.28645206,0.00032,120]
[388006268,1758961842858,-203.58048428,0.00032,120]
[388006269,1758961842868,-1200.99161519,0.00032,2]
[388006270,1758961842879,-170.13491034,0.00032,30]
[388006271,1758961842888,-505.40604951,0.00032021,5]
[388006272,1758961842898,-502.37786568,0.00032021,5]
[388006273,1758961842908,-272.87253393,0.00032021,5]
[388006274,1758961842918,-175.82137953,0.00032021,5]
[388006275,1758961842928,-1000.0,0.00032021,5]
[388006276,1758961842937,-500.0,0.00032021,5]
[388006277,1758961842947,-174.43119571,0.00032021,5]
[388006278,1758961842957,-151.0,0.00032021,5]
[388006279,1758961842967,-151.0,0.00032021,5]
[388006280,1758961842976,-527.80619443,0.00032021,5]
[388006281,1758961842986,-152.97302427,0.00032021,5]
[388006282,1758961842995,-762.0,0.00032021,5]
[388006283,1758961843005,-151.0,0.00032021,5]
[388006284,1758961843014,-151.0,0.00032021,5]
[388006285,1758961843023,-151.0,0.00032067,2]
[388006286,1758961843033,-600.0,0.00032068,30]
[388006287,1758961843042,-160.39805331,0.00032069,30]
[388006288,1758961843052,-151.0,0.00032078,60]
[388006289,1758961843062,-5267.60376799,0.00032091,2]
[388006290,1758961843072,-8785.93481219,0.00032101,2]
[388006291,1758961843081,-587.0,0.00032108,2]
[388006292,1758961843092,-1000.0,0.00032191,7]
[388006293,1758961843102,-752.41454434,0.00032212,5]
[388006294,1758961843111,-168.0,0.00032236,2]
[388006295,1758961843124,-660.0,0.00032248,2]
[388006296,1758961843134,-3500.0,0.0003226,5]
[388006297,1758961843144,-500.0,0.00032262,2]
[388006298,1758961843153,-369.45958365,0.00032262,2]
[388006299,1758961843163,-500.0,0.00032295,5]
[388006300,1758961843172,-294.93221976,0.00032295,5]
[388006301,1758961843181,-295.04958073,0.00032295,5]
[388006302,1758961843191,-762.0,0.00032295,5]
[388006303,1758961843200,-301.78350024,0.00032295,5]
[388006304,1758961843209,-151.0,0.00032295,5]
[388006305,1758961843218,-520.3026214,0.000323,120]
[388006306,1758961843228,-203.58048428,0.000323,120]
[388006307,1758961843237,-151.0,0.00032352,60]
[388006308,1758961843246,-8785.93481219,0.00032465,2]
[388006309,1758961843255,-5194.0,0.000325,2]
[388006310,1758961843265,-500.0,0.00032536,2]
[388006311,1758961843274,-1500.0,0.00032568,5]
[388006312,1758961843283,-447.93322187,0.00032569,5]
[388006313,1758961843292,-762.0,0.00032569,5]
[388006314,1758961843302,-151.0,0.00032569,5]
[388006315,1758961843313,-520.3026214,0.000326,120]
[388006317,1758961843323,-203.58048428,0.000326,120]
[388006319,1758961843332,-1000.0,0.00032602,7]
[388006320,1758961843344,-241.85039905,0.00032615,2]
[388006321,1758961843355,-271.33366843,0.00032626,60]
[388006322,1758961843367,-586.1331603,0.00032658,30]
[388006324,1758961843378,-327.64931952,0.00032708,2]
[388006325,1758961843390,-800.0,0.00032717,2]
[388006326,1758961843401,-168.0,0.00032737,2]
[388006327,1758961843413,-835.03407015,0.0003274,3]
[388006328,1758961843424,-979.0,0.00032751,2]
[388006330,1758961843436,-635.0,0.00032751,2]
[388006331,1758961843447,-2161.0,0.00032751,2]
[388006332,1758961843458,-627.80699433,0.00032764,30]
[388006333,1758961843469,-760.0,0.00032796,2]
[388006334,1758961843480,-1278779.8783401,0.000328,2]
[388006335,1758961843491,-24.989254,0.00032802,2]
[388006336,1758961843502,-4000.0,0.00032808,5]
[388006337,1758961843513,-500.0,0.0003281,2]
[388006338,1758961843524,-8785.93481219,0.00032829,2]
[388006339,1758961843537,-762.0,0.00032843,5]
[388006340,1758961843547,-196.82312778,0.00032843,5]
[388006341,1758961843557,-150.0,0.00032876,2]
[388006342,1758961843567,-170.61890823,0.00032876,2]
[388006343,1758961843577,-926.684666,0.00032877,2]
[388006344,1758961843592,-151.0,0.00032877,7]
[388006345,1758961843603,-151.0,0.00032877,7]
[388006346,1758961843612,-151.0,0.00032877,7]
[388006347,1758961843622,-151.0,0.00032877,7]
[388006348,1758961843632,-151.0,0.00032877,7]
[388006349,1758961843642,-500.0,0.00032877,2]
[388006351,1758961843653,-6880.1355337,0.0003288,2]
[388006353,1758961843663,-118533.7111471,0.00032891,2]
[388006355,1758961843674,-2855.5045995,0.00032892,2]
[388006356,1758961843685,-425.7881521,0.00032892,2]
[388006357,1758961843695,-150.0,0.00032893,2]
[388006359,1758961843705,-150.0,0.00032893,2]
[388006360,1758961843716,-233.76631357,0.00032896,3]
[388006361,1758961843726,-161.0,0.000329,60]
[388006362,1758961843735,-164.0,0.000329,120]
[388006363,1758961843745,-183433.7001122,0.000329,2]
[388006364,1758961843756,-1183.827334,0.000329,7]
[388006365,1758961843767,-192.711831,0.000329,2]
[388006366,1758961843777,-151.1174193,0.000329,2]
[388006367,1758961843788,-151.857887,0.000329,7]
[388006368,1758961843798,-152.328891,0.000329,7]
[388006369,1758961843807,-151.0,0.000329,7]
[388006370,1758961843817,-151.0,0.000329,7]
[388006371,1758961843827,-539.66914,0.000329,7]
[388006372,1758961843839,-539.66914,0.000329,7]
[388006373,1758961843849,-539.66914,0.000329,7]
[388006374,1758961843859,-539.66914,0.000329,7]
[388006375,1758961843869,-151.0,0.000329,7]
[388006376,1758961843880,-151.958453,0.000329,7]
[388006377,1758961843889,-653.0,0.000329,2]
[388006378,1758961843899,-151.0,0.000329,7]
[388006379,1758961843909,-151.850083,0.000329,7]
[388006380,1758961843919,-151.0,0.000329,7]
[388006382,1758961843931,-151.0,0.000329,7]
[388006383,1758961843940,-265.591959,0.00032901,7]
[388006384,1758961843950,-265.591959,0.00032901,7]
[388006385,1758961843960,-265.591959,0.00032901,7]
[388006386,1758961843970,-265.591959,0.00032901,7]
[388006387,1758961843980,-151.0,0.00032901,7]
[388006388,1758961843992,-151.0,0.00032901,7]
[388006389,1758961844003,-151.470752,0.00032901,7]
[388006390,1758961844013,-177.666628,0.00032901,7]
[388006391,1758961844023,-177.666628,0.00032901,7]
[388006392,1758961844034,-151.0,0.00032901,7]
[388006393,1758961844202,-177.666628,0.00032901,7]
[388006394,1758961844212,-177.666628,0.00032901,7]
[388006395,1758961844222,-151.0,0.00032901,7]
[388006396,1758961844232,-160.65649,0.00032901,7]
[388006397,1758961844242,-151.0,0.00032901,7]
[388006398,1758961844251,-151.0,0.00032901,7]
[388006399,1758961844261,-151.814782,0.00032901,7]
[388006400,1758961844270,-151.0,0.00032901,7]
[388006401,1758961844279,-151.0,0.00032901,7]
[388006402,1758961844288,-151.0,0.00032901,7]
[388006403,1758961844298,-151.0,0.00032901,7]
[388006404,1758961844307,-151.0,0.00032901,7]
[388006405,1758961844316,-539.66914,0.00032901,7]
[388006406,1758961844326,-539.66914,0.00032901,7]
[388006407,1758961844338,-539.66914,0.00032901,7]
[388006408,1758961844348,-539.66914,0.00032901,7]
[388006409,1758961844358,-151.0,0.00032901,7]
[388006410,1758961844368,-151.0,0.00032901,7]
[388006411,1758961844377,-151.0,0.00032901,7]
[388006412,1758961844387,-151.0,0.00032901,7]
[388006413,1758961844396,-616.5195758,0.00032901,2]
[388006414,1758961844406,-150.0,0.00032901,2]
[388006415,1758961844415,-1833401.84701279,0.00032901,20]
[388006416,1758961844425,-375.87799197,0.00032901,2]
[388006417,1758961844434,-479.999999,0.00032901,2]
[388006418,1758961844444,-12116.88619757,0.00032901,2]
[388006419,1758961844453,-5169.32287282,0.00032911,2]
[388006420,1758961844463,-233.76631357,0.00032916,7]
[388006421,1758961844473,-151.0,0.00032925,7]
[388006422,1758961844482,-151.0,0.00032925,7]
[388006423,1758961844492,-156.256308,0.00032925,7]
[388006424,1758961844503,-151.0,0.00032925,7]
[388006425,1758961844512,-152.573071,0.00032925,7]
[388006426,1758961844521,-153.944468,0.00032925,7]
[388006427,1758961844531,-160.705849,0.00032925,7]
[388006428,1758961844541,-151.0,0.00032925,7]
[388006429,1758961844550,-151.0,0.00032925,7]
[388006430,1758961844560,-151.0,0.00032925,7]
[388006431,1758961844570,-151.0,0.00032925,7]
[388006432,1758961844579,-151.0,0.00032925,7]
[388006433,1758961844590,-151.0,0.00032925,7]
[388006434,1758961844601,-151.0,0.00032925,7]
[388006435,1758961844610,-151.0,0.00032925,7]
[388006436,1758961844620,-151.0,0.00032925,7]
[388006437,1758961844630,-151.0,0.00032925,7]
[388006438,1758961844641,-151.0,0.00032925,7]
[388006439,1758961844653,-200.0,0.00032925,10]
[388006440,1758961844663,-151.907981,0.00032926,7]
[388006441,1758961844672,-151.0,0.00032926,7]
[388006442,1758961844682,-151.0,0.00032926,7]
[388006443,1758961844693,-152.595957,0.00032927,7]
[388006444,1758961844702,-151.0,0.00032927,7]
[388006445,1758961844711,-157.260104,0.00032927,7]
[388006446,1758961844720,-153.723933,0.00032927,7]
[388006447,1758961844729,-151.0,0.00032927,7]
[388006448,1758961844739,-151.0,0.00032927,7]
[388006449,1758961844748,-151.0,0.00032927,7]
[388006450,1758961844757,-220.475436,0.00032927,7]
[388006451,1758961844766,-159.168411,0.00032927,7]
[388006452,1758961844777,-151.0,0.00032927,7]
[388006453,1758961844787,-151.0,0.00032927,7]
[388006454,1758961844796,-151.0,0.00032927,7]
[388006455,1758961844805,-165.572928,0.00032927,7]
[388006456,1758961844814,-221.397259,0.00032927,7]
[388006457,1758961844823,-221.397259,0.00032927,7]
[388006458,1758961844833,-221.397259,0.00032927,7]
[388006459,1758961844844,-221.397259,0.00032927,7]
[388006460,1758961844853,-221.397259,0.00032927,7]
[388006461,1758961844862,-221.397259,0.00032927,7]
[388006462,1758961844872,-221.397259,0.00032927,7]
[388006463,1758961844881,-221.397259,0.00032927,7]
[388006464,1758961844890,-151.0,0.00032927,7]
[388006465,1758961844899,-160.206383,0.00032927,7]
[388006466,1758961844908,-151.0,0.00032927,7]
[388006467,1758961844918,-152.416889,0.00032927,7]
[388006468,1758961844927,-166.441605,0.00032927,7]
[388006469,1758961844936,-151.0,0.00032927,7]
[388006470,1758961844945,-151.0,0.00032927,7]
[388006471,1758961844955,-160.91597898,0.00032928,10]
[388006472,1758961844964,-262.0,0.00032929,120]
[388006473,1758961844974,-228.527453,0.00032935,60]
[388006474,1758961844983,-168.0,0.00032939,2]
[388006475,1758961844992,-5000.0,0.00032965,4]
[388006476,1758961845001,-500.0,0.00032973,5]
[388006477,1758961845010,-500.0,0.00032973,5]
[388006478,1758961845020,-3419.82262558,0.00032977,3]
[388006479,1758961845028,-289.0,0.00032987,2]
[388006480,1758961845037,-1020.21416762,0.00033,5]
[388006481,1758961845046,-520.3026214,0.00033,120]